bitfinex-derivatives/quotes_ETHF0:USTF0_20250116
["timestamp","ask_amount","ask_price","bid_price","bid_amount"]
[1737046868902,4.68534829,3336.5,3336.4,3.80734]
[1737046869098,6.30663756,3337.2,3336.4,8.2078]
[1737046869299,6.30663756,3337.2,3337.1,0.59941]
[1737046869501,6.30663756,3337.2,3337.1,3.80721]
[1737046869804,6.30663756,3337.2,3337.1,44.60721]
[1737046870604,0.59933,3337.6,3337.5,0.59934]
[1737046870803,0.59936,3337.4,3337.1,44.0078]
[1737046871004,0.59938,3337.3,3337.2,0.59938]
[1737046871298,3.2078,3337.6,3337.0,1.273]
[1737046871699,0.59935,3337.5,3337.4,0.59934]
[1737046872105,3.2078,3337.6,3337.1,1.1735]
[1737046872703,3.2078,3337.6,3337.0,1.1551]
[1737046872909,1.49835,3337.5,3336.9,1.87244]
[1737046873096,0.59943,3337.0,3336.9,0.59944]
[1737046873301,0.59943,3337.0,3336.5,2.65389]
[1737046873302,0.59939,3337.3,3337.1,0.5994]
[1737046873506,0.59939,3337.3,3336.8,3.2078]
[1737046873507,0.5994,3337.2,3337.0,0.59941]
[1737046873904,1.0951,3337.4,3336.8,3.2078]
[1737046874103,1.1702,3337.3,3336.8,3.2078]
[1737046874306,3.2078,3337.2,3336.7,0.59947]
[1737046874506,3.2078,3337.2,3336.7,0.59948]
[1737046874712,3.2078,3337.2,3336.5,0.59951]
[1737046875008,2.92594438,3337.0,3336.3,1.273]
[1737046875211,3.2078,3337.2,3336.7,0.59947]
[1737046875504,0.59948,3336.7,3336.6,0.59949]
[1737046875706,0.59944,3337.0,3336.4,3.2078]
[1737046875902,0.59945,3336.9,3336.4,3.2078]
[1737046876212,0.59951,3336.6,3336.5,0.59951]
[1737046876410,0.59953,3336.5,3336.4,0.59953]
[1737046876604,3.2078,3336.8,3336.3,1.273]
[1737046876810,0.59951,3336.6,3336.5,0.59952]
[1737046877010,1.1155,3336.7,3336.6,0.5995]
[1737046877209,5.85668537,3337.1,3336.4,3.2078]
[1737046877409,5.85668537,3337.1,3337.0,0.59943]
[1737046878211,5.85668537,3337.5,3336.9,3.2078]
[1737046878413,5.85668537,3337.5,3337.4,3.80716]
[1737046878711,5.85668537,3337.5,3337.4,11.73310438]
[1737046878712,2.53023366,3337.5,3337.4,11.73310438]
[1737046878914,6.12819023,3337.9,3337.8,0.59928]
[1737046879109,8.19e-06,3337.9,3337.8,6.73302438]
[1737046879315,6.15977693,3338.1,3338.0,0.59925]
[1737046879813,6.15977693,3338.1,3338.0,41.39925]
[1737046880113,0.59909,3338.9,3338.0,41.39925]
[1737046880114,1.1998,3339.6,3338.0,45.8]
[1737046880311,1.1998,3339.6,3339.2,3.2078]
[1737046880507,11.65551364,3340.0,3339.2,3.2078]
[1737046880713,10.44481364,3340.0,3339.6,6.13374438]
[1737046881017,9.31981364,3340.0,3339.9,0.59891]
[1737046881413,0.59885,3340.3,3340.1,0.59886]
[1737046881608,1.125,3340.7,3339.5,1.49745]
[1737046881609,0.59888,3340.1,3339.9,0.5989]
[1737046881912,0.59893,3339.8,3339.7,1.273]
[1737046882117,3.2078,3340.5,3339.7,1.273]
[1737046882415,3.2078,3340.5,3340.0,3.2078]
[1737046882721,0.59886,3340.2,3340.0,0.59888]
[1737046883016,0.59893,3339.8,3339.7,1.273]
[1737046883514,3.2078,3340.5,3339.7,1.273]
[1737046883904,0.59884,3340.3,3340.0,0.59888]
[1737046884108,0.5989,3340.0,3339.7,1.273]
[1737046884314,0.59888,3340.1,3339.7,1.87194]
[1737046884518,0.59889,3340.1,3339.7,1.87194]
[1737046884814,0.59888,3340.1,3339.8,0.59892]
[1737046885013,3.80661,3340.5,3339.7,1.273]
[1737046885202,3.2078,3340.5,3340.4,0.59882]
[1737046885409,1.125,3340.7,3339.9,3.2078]
[1737046885611,3.2078,3340.9,3340.3,3.2078]
[1737046885810,3.2078,3340.9,3340.8,0.59875]
[1737046886015,3.2078,3340.9,3340.3,44.0078]
[1737046886213,3.2078,3340.9,3340.3,3.2078]
[1737046886410,1.1604,3341.1,3340.3,3.2078]
[1737046886411,3.2078,3341.4,3340.7,3.2078]
[1737046886813,3.2078,3341.4,3341.2,0.59867]
[1737046887019,3.2078,3341.4,3340.8,40.8]
[1737046887217,2.4054,3341.5,3341.3,0.59865]
[1737046887415,1.2044,3341.5,3340.5,5.97677]
[1737046887614,3.2078,3341.8,3340.6,40.8]
[1737046887818,3.2078,3341.8,3340.9,3.2078]
[1737046888009,0.5986,3341.7,3341.4,0.59864]
[1737046888216,3.2078,3341.8,3341.4,0.59864]
[1737046888415,3.2078,3341.8,3341.5,0.59861]
[1737046888610,3.2078,3341.8,3340.9,3.2078]
[1737046888913,0.59858,3341.7,3341.3,0.59864]
[1737046889110,3.2078,3341.8,3341.3,1.272]
[1737046889311,1.201,3342.1,3341.3,4.4798]
[1737046889527,0.59858,3341.7,3341.3,1.272]
[1737046889820,0.59861,3341.6,3341.3,1.272]
[1737046890010,1.201,3342.1,3341.3,1.272]
[1737046890214,0.59863,3341.5,3341.3,1.272]
[1737046890420,3.2078,3341.8,3341.3,1.272]
[1737046890622,0.59864,3341.4,3341.3,1.272]
[1737046891213,3.2078,3341.4,3340.8,1.271]
[1737046891424,0.5987,3341.1,3340.7,1.86976]
[1737046891616,0.5987,3341.1,3340.4,3.2078]
[1737046891617,3.2078,3341.4,3340.4,3.2078]
[1737046891812,3.2078,3341.0,3340.1,1.271]
[1737046892013,3.2078,3340.6,3339.5,4.4788]
[1737046892320,0.59885,3340.3,3339.5,4.4788]
[1737046892522,3.2078,3340.6,3339.5,4.4788]
[1737046892820,0.5988,3340.5,3339.5,4.4788]
[1737046893018,0.59881,3340.5,3340.2,0.59884]
[1737046893217,3.2078,3340.6,3339.5,42.071]
[1737046893428,0.59889,3340.1,3339.8,0.59891]
[1737046893618,0.59888,3340.1,3339.6,0.59896]
[1737046893817,0.59888,3340.1,3339.5,1.271]
[1737046894027,3.2078,3340.6,3339.5,1.271]
[1737046894515,0.59887,3340.1,3339.9,0.59889]
[1737046894716,0.59887,3340.1,3339.6,0.59896]
[1737046894916,3.2078,3340.6,3340.0,0.59889]
[1737046895226,0.59887,3340.1,3340.0,0.59889]
[1737046895524,0.5988,3340.5,3340.2,0.59885]
[1737046895821,3.2078,3340.6,3340.1,0.59887]
[1737046896023,0.59885,3340.3,3339.5,2.76845]
[1737046896332,0.59885,3340.2,3340.0,0.59888]
[1737046896521,0.5989,3340.0,3339.8,0.59892]
[1737046896822,3.2078,3340.6,3339.5,2.76844]
[1737046897023,0.59886,3340.2,3339.5,2.76844]
[1737046897229,3.2078,3340.6,3339.5,2.76844]
[1737046897425,0.59882,3340.4,3340.3,0.59883]
[1737046897620,0.59885,3340.3,3340.1,0.59886]
[1737046897820,3.2078,3340.6,3340.0,3.2078]
[1737046898019,0.59896,3339.6,3339.5,3.2078]
[1737046898215,0.59898,3339.5,3339.4,41.399]
[1737046898426,2.3712,3340.0,3339.4,40.8]
[1737046898623,2.3712,3340.0,3339.4,44.0078]
[1737046898824,0.59892,3339.9,3339.4,44.0078]
[1737046899017,2.3712,3340.0,3339.7,0.59893]
[1737046899018,0.59893,3339.8,3339.7,0.59893]
[1737046899225,0.59893,3339.8,3339.4,44.0078]
[1737046899226,0.59895,3339.7,3339.6,0.59896]
[1737046899623,2.3712,3340.0,3339.4,3.2078]
[1737046899624,0.59898,3339.5,3339.4,3.2078]
[1737046899924,3.2078,3339.5,3338.9,1.271]
[1737046900120,0.59904,3339.2,3339.0,0.59907]
[1737046900421,0.59907,3339.0,3338.9,40.8]
[1737046900623,3.2078,3339.2,3338.7,0.59911]
[1737046900824,0.59905,3339.2,3339.0,0.59907]
[1737046901023,0.59905,3339.2,3339.1,0.59905]
[1737046901225,0.59905,3339.2,3338.6,1.271]
[1737046901226,0.59903,3339.2,3339.0,0.59906]
[1737046901421,0.59911,3338.8,3338.6,1.87013]
[1737046901621,3.2078,3339.2,3338.6,1.271]
[1737046901821,0.5991,3338.9,3338.6,1.271]
[1737046902226,0.5991,3338.9,3338.7,0.59912]
[1737046902424,0.59907,3339.0,3338.8,0.59909]
[1737046902925,3.2078,3339.2,3338.6,1.271]
[1737046903122,0.59912,3338.7,3338.6,1.271]
[1737046903319,2.3338,3339.1,3338.4,3.80696]
[1737046903526,0.59913,3338.7,3338.5,0.59914]
[1737046903923,0.59911,3338.8,3338.6,0.59913]
[1737046904122,2.3338,3339.1,3338.4,3.2078]
[1737046904330,3.2078,3339.2,3339.1,0.59905]
[1737046904529,0.59895,3339.7,3339.5,0.59896]
[1737046904718,1.1176,3339.8,3339.7,0.59894]
[1737046904924,0.59891,3339.9,3339.8,0.59893]
[1737046905127,1.1904,3340.5,3339.7,40.8]
[1737046905128,2.308,3340.5,3339.7,44.0078]
[1737046905324,2.308,3340.5,3339.7,40.8]
[1737046905531,2.308,3340.5,3340.0,0.59889]
[1737046905723,2.308,3340.5,3339.7,40.8]
[1737046906026,3.80501,3340.5,3339.7,40.8]
[1737046906232,0.59895,3339.7,3339.1,1.1188]
[1737046906434,0.59894,3339.8,3339.1,1.1188]
[1737046906627,0.59893,3339.8,3339.6,0.59894]
[1737046906821,0.59893,3339.8,3339.1,5.54580927]
[1737046906822,3.2078,3340.2,3339.2,40.8]
[1737046907123,0.59885,3340.3,3340.1,0.59887]
[1737046907328,0.59884,3340.3,3339.8,3.2078]
[1737046907526,3.2078,3340.7,3339.4,3.2078]
[1737046907725,3.2078,3340.3,3339.4,3.2078]
[1737046907921,3.2078,3340.3,3339.9,0.59891]
[1737046908235,3.2078,3340.3,3339.4,3.2078]
[1737046908236,0.59886,3340.2,3339.4,3.2078]
[1737046908434,0.59886,3340.2,3339.5,1.49746]
[1737046908625,3.2078,3340.3,3339.8,3.2078]
[1737046908827,3.2078,3340.3,3340.2,0.59885]
[1737046909030,3.2078,3340.3,3339.9,1.271]
[1737046909429,3.2078,3340.3,3340.2,0.59885]
[1737046909734,2.2556,3341.2,3339.9,1.271]
[1737046909735,3.2078,3341.1,3339.9,1.271]
[1737046909930,3.2078,3341.1,3341.0,0.59871]
[1737046910136,3.2078,3341.1,3340.3,3.2078]
[1737046910137,3.2078,3341.7,3340.9,1.49682]
[1737046910328,0.59865,3341.4,3341.2,0.59866]
[1737046910630,3.2078,3341.7,3340.8,1.49687]
[1737046910933,3.2078,3341.7,3341.3,0.59865]
[1737046911133,0.59863,3341.5,3341.3,0.59865]
[1737046911329,3.2078,3341.7,3340.7,2.4799]
[1737046911532,3.2078,3341.2,3340.7,1.271]
[1737046911925,0.59875,3340.8,3340.7,1.271]
[1737046912327,3.2078,3340.8,3339.9,2.4799]
[1737046912527,1.49684,3340.9,3339.9,1.8699]
[1737046912528,0.59888,3340.1,3339.9,1.8699]
[1737046912833,0.59886,3340.2,3340.0,0.59888]
[1737046913334,3.2078,3340.4,3339.4,2.3298]
[1737046913532,3.2078,3340.0,3339.3,1.271]
[1737046913838,3.2078,3340.0,3339.1,2.4871]
[1737046914034,0.59888,3340.1,3339.9,0.59891]
[1737046914228,1.1825,3340.2,3339.4,3.2078]
[1737046914435,0.59883,3340.4,3340.2,0.59885]
[1737046914630,5.5634,3340.8,3339.7,1.49737]
[1737046914931,0.59883,3340.4,3340.2,0.59885]
[1737046915333,5.5634,3340.8,3339.5,1.49746]
[1737046915534,0.59884,3340.3,3340.1,0.59886]
[1737046915736,0.59885,3340.2,3340.1,0.59886]
[1737046915931,3.2078,3340.4,3339.4,3.2078]
[1737046916132,0.59885,3340.3,3340.1,0.59887]
[1737046916336,3.2078,3340.4,3339.5,1.49746]
[1737046916836,0.59885,3340.3,3340.1,0.59885]
[1737046917036,3.2078,3340.4,3339.6,1.49741]
[1737046917235,0.59888,3340.1,3339.9,0.59889]
[1737046917435,0.59887,3340.2,3340.0,0.59888]
[1737046917635,0.59887,3340.1,3340.0,0.59888]
[1737046917937,0.5989,3340.0,3339.9,0.5989]
[1737046918134,3.2078,3340.4,3339.4,3.2078]
[1737046918338,0.59888,3340.1,3340.0,0.59888]
[1737046918536,0.59886,3340.2,3340.1,0.59886]
[1737046919843,3.2078,3340.4,3340.3,0.59884]
[1737046920139,3.80662,3340.4,3340.3,0.59884]
[1737046920739,1.73946,3340.7,3340.6,0.59878]
[1737046920939,5.5634,3340.8,3339.9,2.383]
[1737046921241,0.59886,3340.2,3340.1,0.59887]
[1737046921436,0.59889,3340.1,3340.0,0.59888]
[1737046921746,0.59887,3340.2,3340.1,0.59886]
[1737046921942,0.59885,3340.3,3340.2,0.59885]
[1737046922132,6.16216,3340.8,3340.7,0.59876]
[1737046922440,1.2196,3341.3,3340.9,0.59872]
[1737046922441,0.59872,3341.0,3340.9,0.59872]
[1737046922738,7.02957674,3341.6,3340.7,1.49692]
[1737046922936,7.02957674,3341.6,3340.8,1.1061]
[1737046923144,0.5987,3341.1,3341.0,0.5987]
[1737046923843,7.02957674,3341.6,3340.8,1.1061]
[1737046924041,0.59862,3341.5,3340.8,1.1061]
[1737046924248,0.59868,3341.2,3341.1,0.59868]
[1737046924451,2.3922,3341.6,3340.8,1.1061]
[1737046924639,0.59866,3341.3,3341.2,0.59867]
[1737046924840,2.3922,3341.6,3340.8,1.1061]
[1737046925039,0.59865,3341.4,3340.9,0.59873]
[1737046925240,2.3922,3341.6,3341.2,0.59866]
[1737046925445,2.3922,3341.6,3341.5,0.59862]
[1737046925741,3.2078,3341.8,3341.5,0.59861]
[1737046925939,3.2078,3341.8,3340.8,1.1061]
[1737046926134,0.59873,3340.9,3340.7,1.2035]
[1737046926339,3.2078,3341.5,3340.7,1.2035]
[1737046926749,0.59866,3341.3,3341.2,0.59867]
[1737046927255,3.2078,3341.5,3340.7,1.2035]
[1737046927843,3.2078,3341.1,3340.7,1.2035]
[1737046928045,3.2078,3341.1,3340.5,4.4778]
[1737046928339,0.59878,3340.6,3340.5,5.07659]
[1737046928740,0.59878,3340.7,3340.5,4.4778]
[1737046929048,0.59878,3340.7,3340.5,3.80659]
[1737046929349,3.5435,3341.0,3340.3,3.2078]
[1737046929552,3.2078,3341.1,3340.2,2.3835]
[1737046929553,4.63737674,3341.8,3340.8,6.13346252]
[1737046929846,3.51517231,3341.3,3341.2,0.59867]
[1737046930240,3.51517231,3341.3,3341.2,3.80647]
[1737046930641,3.51517231,3341.3,3341.1,41.39868]
[1737046930848,0.59867,3341.2,3341.1,0.59868]
[1737046931151,0.59873,3340.9,3340.8,1.86873]
[1737046931348,2.2867,3341.4,3340.8,1.27]
[1737046931547,0.59866,3341.4,3341.3,0.59864]
[1737046931946,0.59865,3341.4,3341.3,0.59865]
[1737046932148,0.59868,3341.3,3341.2,0.59867]
[1737046932345,1.49647,3341.7,3340.8,1.86873]
[1737046932346,0.59873,3340.9,3340.8,1.86873]
[1737046932545,0.59873,3340.9,3340.8,1.27]
[1737046932749,0.59878,3340.7,3340.6,0.59877]
[1737046932957,0.59873,3341.0,3340.9,0.59872]
[1737046933255,1.78159,3341.2,3341.1,0.59869]
[1737046933455,0.5987,3341.1,3341.0,0.5987]
[1737046933657,1.1829,3341.2,3340.7,3.2078]
[1737046934049,1.1829,3341.2,3340.8,0.59875]
[1737046934050,0.59875,3340.9,3340.8,0.59875]
[1737046934244,0.00260857,3341.0,3340.6,2.92566252]
[1737046934556,0.00260857,3341.0,3340.9,0.59873]
[1737046935053,0.00260857,3341.0,3340.9,3.52439252]
[1737046935456,0.00260857,3341.0,3340.9,44.32439252]
[1737046937159,0.00260857,3341.0,3340.9,0.59873]
[1737046937654,0.00260857,3341.0,3340.9,41.39873]
[1737046937954,0.00260857,3341.0,3340.9,0.59873]
[1737046938459,0.00260857,3341.0,3340.9,41.39873]
[1737046939355,4.373,3342.2,3340.9,45.8]
[1737046939560,1.76371,3342.2,3342.1,0.59851]
[1737046940450,1.1652,3342.2,3342.1,0.59851]
[1737046940959,1.1969,3342.4,3342.3,0.59848]
[1737046941856,1.79536,3342.4,3342.3,0.59848]
[1737046942159,1.1969,3342.4,3342.3,0.59848]
[1737046942656,5.23571674,3343.1,3342.8,0.59839]
[1737046942857,4.63737674,3343.0,3342.9,0.59837]
[1737046944460,1.1994,3343.4,3343.2,0.59831]
[1737046944461,0.59831,3343.3,3343.2,0.59831]
[1737046944958,1.1994,3343.4,3342.7,6.13346252]
[1737046945158,1.1994,3343.4,3343.1,3.2078]
[1737046945368,0.59831,3343.3,3343.2,0.59832]
[1737046945554,1.1994,3343.4,3342.7,6.13346252]
[1737046945860,1.1994,3343.4,3342.7,3.2078]
[1737046946063,0.59833,3343.2,3343.1,0.59833]
[1737046946256,1.1994,3343.4,3342.7,6.13346252]
[1737046946458,1.1994,3343.4,3343.1,3.2078]
[1737046946664,0.59831,3343.3,3343.2,0.5983]
[1737046947063,1.1994,3343.4,3343.2,0.5983]
[1737046947360,0.5983,3343.3,3343.2,0.5983]
[1737046947563,1.1994,3343.4,3343.1,3.2078]
[1737046948058,1.1994,3343.4,3342.7,6.13346252]
[1737046948356,0.59831,3343.3,3343.2,0.59831]
[1737046948559,1.1994,3343.4,3343.3,0.5983]
[1737046950259,1.79768,3343.4,3343.3,0.5983]
[1737046950457,1.1994,3343.4,3343.3,0.5983]
[1737046950659,1.79768,3343.4,3343.3,0.5983]
[1737046950858,1.1994,3343.4,3343.3,0.5983]
[1737046951561,1.79768,3343.4,3343.3,0.5983]
[1737046951762,1.79768,3343.4,3343.1,3.2078]
[1737046951763,1.1994,3343.4,3343.1,3.2078]
[1737046951967,1.1994,3343.4,3342.9,0.59835]
[1737046952168,0.59835,3343.0,3342.9,0.59835]
[1737046952365,0.59833,3343.2,3342.8,0.59839]
[1737046952563,0.59836,3343.0,3342.9,0.59836]
[1737046952961,3.2078,3343.3,3342.6,3.2078]
[1737046953466,3.2078,3343.3,3343.1,0.59832]
[1737046953670,3.2078,3343.3,3343.2,0.59832]
[1737046954264,0.59833,3343.2,3343.1,0.59832]
[1737046954570,0.59833,3343.2,3342.6,4.70387]
[1737046954571,0.59841,3342.7,3342.6,3.80622]
[1737046954776,0.59838,3342.9,3342.8,0.59837]
[1737046955071,0.59841,3342.7,3342.6,3.2078]
[1737046956260,2.416,3342.8,3342.6,3.2078]
[1737046956466,1.2386,3343.1,3342.6,3.2078]
[1737046956768,0.59838,3342.9,3342.8,0.59838]
[1737046956966,1.2386,3343.1,3343.0,0.59835]
[1737046957166,1.2116,3343.3,3342.7,2.92566252]
[1737046957370,1.2116,3343.3,3343.2,0.59832]
[1737046957768,1.8099,3343.3,3343.2,0.59832]
[1737046957970,1.2116,3343.3,3343.2,0.59832]
[1737046958873,1.2116,3343.3,3343.0,3.2078]
[1737046958874,0.59828,3343.5,3343.4,0.59827]
[1737046959271,0.59828,3343.5,3343.0,7.62932252]
[1737046959567,0.59828,3343.5,3343.4,0.59826]
[1737046959965,0.5983,3343.4,3343.3,0.59829]
[1737046960571,0.59828,3343.5,3343.4,0.59827]
[1737046960779,0.5983,3343.4,3343.3,0.59829]
[1737046961167,0.59831,3343.3,3343.2,0.59831]
[1737046961770,3.2078,3343.4,3342.8,0.59838]
[1737046961966,5.35796252,3343.6,3342.6,3.2078]
[1737046961967,0.59841,3342.7,3342.6,3.2078]
[1737046962874,0.59841,3342.7,3342.6,3.80622]
[1737046963081,1.1596,3342.8,3342.6,3.2078]
[1737046963267,1.1596,3342.8,3342.7,0.59841]
[1737046963473,1.2128,3342.9,3342.8,0.59839]
[1737046963674,3.2078,3343.0,3342.9,0.59837]
[1737046965174,3.80615,3343.0,3342.9,0.59837]
[1737046965468,3.80615,3343.0,3342.8,4.14666252]
[1737046965469,1.1467,3343.5,3343.0,1.49589]
[1737046965674,1.1467,3343.5,3342.8,4.14666252]
[1737046965675,0.59821,3343.8,3343.7,0.59821]
[1737046965878,0.59826,3343.7,3343.6,0.59824]
[1737046966670,0.59823,3343.8,3343.7,0.59821]
[1737046967471,0.59817,3344.0,3343.7,0.59822]
[1737046967667,0.59817,3344.0,3343.6,3.2078]
[1737046967668,1.49544,3344.0,3343.0,3.2078]
[1737046967872,4.70331,3343.9,3343.1,40.8]
[1737046968069,0.59831,3343.3,3343.2,0.5983]
[1737046968271,2.4027,3344.1,3343.1,2.92566252]
[1737046968479,2.4027,3344.1,3343.9,0.59818]
[1737046968480,0.59819,3344.0,3343.9,0.59818]
[1737046968866,2.4027,3344.1,3343.4,6.13346252]
[1737046968867,0.59821,3343.9,3343.8,0.5982]
[1737046969782,0.59824,3343.7,3343.6,0.59823]
[1737046969972,0.59822,3343.8,3343.7,0.59821]
[1737046970870,2.4027,3344.1,3343.4,3.2078]
[1737046971180,0.59815,3344.2,3344.1,0.59814]
[1737046971380,4.3545,3344.3,3344.0,0.59816]
[1737046971381,0.59817,3344.1,3344.0,0.59816]
[1737046971776,0.59815,3344.2,3344.1,0.59814]
[1737046972077,0.59814,3344.2,3344.1,0.59815]
[1737046972289,4.3545,3344.3,3343.8,1.1539]
[1737046972477,0.59811,3344.4,3344.3,0.59811]
[1737046972981,3.50341019,3344.5,3343.9,2.92566252]
[1737046973282,0.59809,3344.5,3344.4,0.5981]
[1737046974176,4.10144019,3344.9,3344.7,0.59805]
[1737046974376,3.50341019,3344.9,3344.8,0.59803]
[1737046974571,0.598,3345.0,3344.5,5.60815252]
[1737046974778,3.50341019,3345.2,3345.0,0.59799]
[1737046974779,0.59799,3345.1,3345.0,0.59799]
[1737046974976,3.50341019,3345.2,3345.1,0.59798]
[1737046975179,3.50341019,3345.2,3345.1,3.52364252]
[1737046975771,4.10125019,3345.9,3345.1,2.92566252]
[1737046975976,3.50341019,3345.9,3345.8,0.59785]
[1737046976279,3.50341019,3345.9,3345.6,3.2078]
[1737046976478,3.50341019,3345.9,3345.8,0.59785]
[1737046976681,4.10124019,3345.9,3345.8,0.59785]
[1737046977385,0.59783,3345.9,3345.8,0.59785]
[1737046977586,1.2457,3346.4,3345.6,4.4214]
[1737046977787,1.49442,3346.3,3345.6,4.4214]
[1737046977978,3.2078,3346.1,3345.2,1.1933]
[1737046978482,0.59794,3345.3,3345.2,1.79125]
[1737046978786,3.2078,3346.1,3345.1,3.2078]
[1737046979082,3.2078,3346.1,3345.2,0.59795]
[1737046979083,0.59796,3345.3,3345.2,0.59795]
[1737046979689,0.59796,3345.2,3345.1,3.80577]
[1737046979885,0.59795,3345.3,3345.2,0.59795]
[1737046980090,0.59796,3345.2,3345.1,3.2078]
[1737046980287,1.49486,3345.3,3344.7,3.2078]
[1737046980585,0.59814,3344.2,3344.1,1.2155]
[1737046980781,3.2078,3344.9,3344.0,3.2078]
[1737046980782,0.59816,3344.1,3344.0,3.2078]
[1737046980977,0.59816,3344.1,3344.0,3.80597]
[1737046981183,0.59816,3344.1,3344.0,3.2078]
[1737046981384,0.59819,3343.9,3343.8,1.2155]
[1737046981788,0.59819,3343.9,3343.8,1.81371]
[1737046981993,4.70302,3344.5,3343.8,1.2155]
[1737046982183,4.70302,3344.5,3344.0,0.59816]
[1737046982184,0.59816,3344.1,3344.0,0.59816]
[1737046982488,5.26672433,3343.9,3343.8,1.8137]
[1737046982690,4.66853433,3343.9,3343.8,1.8137]
[1737046983883,3.50319333,3343.9,3343.8,1.8137]
[1737046984992,4.66853433,3344.0,3343.9,0.59819]
[1737046985194,4.66853433,3344.0,3343.9,3.52385252]
[1737046985195,4.33e-06,3344.0,3343.9,3.52385252]
[1737046985588,4.33e-06,3344.0,3343.9,45.59085252]
[1737046985990,3.50440616,3344.5,3344.4,0.5981]
[1737046986186,3.50440616,3344.5,3344.4,3.8059]
[1737046986889,3.50440616,3344.5,3344.4,6.73156252]
[1737046988289,5.79621507,3344.9,3344.4,6.73156252]
[1737046988290,2.89415,3345.3,3345.2,0.59796]
[1737046988495,0.59798,3345.2,3345.1,0.59797]
[1737046988693,0.59801,3344.9,3344.8,3.2078]
[1737046988899,0.59803,3344.8,3344.7,1.267]
[1737046989200,0.59803,3344.8,3344.7,1.86504]
[1737046989395,0.59802,3344.9,3344.8,0.59801]
[1737046990200,0.59803,3344.8,3344.7,1.267]
[1737046990398,0.59803,3344.8,3344.7,1.86505]
[1737046990599,0.59803,3344.8,3344.7,1.267]
[1737046990895,1.49511,3344.8,3343.8,2.92566252]
[1737046991091,1.1753,3344.7,3344.0,3.2078]
[1737046991397,1.77336,3344.7,3344.6,0.59807]
[1737046991592,1.1753,3344.7,3344.6,0.59807]
[1737046991895,2.2962,3345.3,3344.5,1.267]
[1737046992195,2.2962,3345.3,3344.5,2.76219]
[1737046992393,3.2078,3345.2,3344.5,1.267]
[1737046992593,0.59807,3344.6,3344.5,1.86507]
[1737046993189,0.59807,3344.6,3344.5,1.267]
[1737046993587,6.13346252,3345.2,3344.3,0.59811]
[1737046993588,1.49503,3345.0,3344.3,0.59811]
[1737046993789,0.5981,3344.4,3344.3,0.59811]
[1737046994197,2.3071,3344.5,3344.0,3.2078]
[1737046994405,0.59816,3344.2,3344.1,0.59814]
[1737046994698,2.3071,3344.5,3344.2,0.59812]
[1737046994699,0.59813,3344.3,3344.2,0.59812]
[1737046995295,2.3071,3344.5,3344.0,3.2078]
[1737046995498,0.59817,3344.1,3344.0,0.59816]
[1737046995691,0.59817,3344.0,3343.9,1.86517]
[1737046996001,0.59817,3344.0,3343.9,41.39817]
[1737046996696,0.59817,3344.0,3343.9,40.8]
[1737046997291,0.59817,3344.0,3343.9,0.59819]
[1737046997491,3.50440616,3344.3,3343.6,3.2078]
[1737046997695,1.49547,3344.0,3343.1,0.59832]
[1737046997895,1.4955,3343.9,3343.1,40.8]
[1737046998099,1.4955,3343.9,3343.3,0.59828]
[1737046998100,0.5983,3343.4,3343.3,0.59828]
[1737046998500,0.59832,3343.3,3343.2,0.5983]
[1737046999093,2.4538,3343.7,3343.1,3.2078]
[1737046999294,0.59826,3343.6,3343.5,0.59825]
[1737046999502,2.4538,3343.7,3343.1,3.2078]
[1737046999689,2.4538,3343.7,3342.2,3.22581904]
[1737046999690,3.2078,3343.5,3342.4,4.19266252]
[1737046999998,3.2078,3343.1,3342.2,3.2078]
[1737047000301,0.59848,3342.4,3342.3,40.8]
[1737047000501,0.59848,3342.4,3342.3,41.39848]
[1737047001000,0.59848,3342.3,3342.2,3.2078]
[1737047001198,1.49607,3342.6,3342.0,0.59852]
[1737047001392,0.59853,3342.0,3341.9,0.59854]
[1737047001593,1.49607,3342.6,3341.8,4.19266252]
[1737047001796,0.59855,3341.9,3341.8,1.267]
[1737047002006,1.49629,3342.1,3341.3,3.2078]
[1737047002204,3.2078,3342.3,3341.4,0.59863]
[1737047002205,0.59863,3341.5,3341.4,0.59863]
[1737047002497,0.59861,3341.6,3341.4,0.59862]
[1737047002697,2.4491,3341.9,3341.4,0.59862]
[1737047002896,0.59862,3341.6,3341.3,3.2078]
[1737047003101,2.4491,3341.9,3341.5,2.92566252]
[1737047003304,1.2574,3341.9,3341.8,0.59857]
[1737047003693,2.33828689,3342.1,3342.0,0.59853]
[1737047003996,2.33828689,3342.1,3342.0,1.86553]
[1737047004599,1.173,3342.6,3342.4,0.59845]
[1737047004796,1.173,3342.6,3342.2,3.2078]
[1737047005001,1.77143,3342.6,3342.5,0.59844]
[1737047005304,0.59846,3342.4,3342.3,40.8]
[1737047005501,0.59856,3341.9,3341.6,3.2078]
[1737047005693,1.173,3342.6,3341.8,4.19366252]
[1737047005897,1.173,3342.6,3342.1,2.92566252]
[1737047006400,0.59844,3342.5,3342.1,2.92566252]
[1737047006605,1.77143,3342.6,3342.2,40.8]
[1737047006905,0.59844,3342.5,3342.2,40.8]
[1737047007108,1.77143,3342.6,3342.2,40.8]
[1737047007404,1.173,3342.6,3342.5,0.59844]
[1737047007598,1.173,3342.6,3342.2,40.8]
[1737047007806,1.77143,3342.6,3342.4,0.59845]
[1737047008404,0.59844,3342.5,3342.4,0.59845]
[1737047008704,1.173,3342.6,3342.3,0.59847]
[1737047008906,0.59845,3342.5,3342.3,0.59847]